[Event "Titled Tuesday Blitz November 14 Late 2023"]
[White "Balla, Tamas-Kristof"]
[Black "CuteSheepCloud"]
[WhiteFideId "1208497"]
[WhiteElo "2377"]
[BlackElo "2679"]
[Result "0-1"]
[Round "2"]
[TimeControl "180+1"]
[Date "2023.11.14"]
[WhiteClock "0:01:28"]
[BlackClock "0:01:21"]
[Board "109"]

1. e4 {[%clk 0:02:58]}  e5 {[%clk 0:02:42]} 2. Nf3 {[%clk 0:02:57]}  Nc6 {[%clk 0:02:41]} 3. d4 {[%clk 0:02:58]}  exd4 {[%clk 0:02:41]} 4. Nxd4 {[%clk 0:02:59]}  Nf6 {[%clk 0:02:41]} 5. Nxc6 {[%clk 0:02:59]}  bxc6 {[%clk 0:02:42]} 6. e5 {[%clk 0:02:59]}  Nd5 {[%clk 0:02:42]} 7. c4 {[%clk 0:02:57]}  Nb6 {[%clk 0:02:42]} 8. Bd3 {[%clk 0:02:55]}  d6 {[%clk 0:02:42]} 9. exd6 {[%clk 0:02:44]}  Bxd6 {[%clk 0:02:42]} 10. O-O {[%clk 0:02:44]}  O-O {[%clk 0:02:37]} 11. Be3 {[%clk 0:02:40]}  c5 {[%clk 0:02:25]} 12. Be4 {[%clk 0:02:37]}  Rb8 {[%clk 0:02:24]} 13. Nd2 {[%clk 0:02:35]}  Re8 {[%clk 0:02:19]} 14. b3 {[%clk 0:02:28]}  Qe7 {[%clk 0:02:13]} 15. Bf3 {[%clk 0:02:15]}  Qe5 {[%clk 0:02:06]} 16. g3 {[%clk 0:02:09]}  Bh3 {[%clk 0:02:00]} 17. Re1 {[%clk 0:02:07]}  Qf6 {[%clk 0:01:53]} 18. Bc6 {[%clk 0:02:05]}  Red8 {[%clk 0:01:51]} 19. Ne4 {[%clk 0:02:03]}  Qg6 {[%clk 0:01:51]} 20. Qf3 {[%clk 0:01:52]}  Be5 {[%clk 0:01:47]} 21. Nxc5 {[%clk 0:01:37]}  Bxa1 {[%clk 0:01:30]} 22. Rxa1 {[%clk 0:01:38]}  Rd6 {[%clk 0:01:26]} 23. Be4 {[%clk 0:01:35]}  Qf6 {[%clk 0:01:21]} 24. Qh5 {[%clk 0:01:28]}  Qxa1+ {[%clk 0:01:21]} 0-1


[Site "https://www.chess.com"]

[Event "Titled Tuesday Blitz November 14 Late 2023"]
[White "Bugayev, Vladimir"]
[Black "Martinez Ramirez, Lennis"]
[WhiteFideId "30901480"]
[BlackFideId "3509079"]
[WhiteElo "2376"]
[BlackElo "2643"]
[Result "0-1"]
[Round "2"]
[TimeControl "180+1"]
[Date "2023.11.14"]
[WhiteClock "0:01:50"]
[BlackClock "0:02:20"]
[Board "110"]

1. e4 {[%clk 0:03:00]}  c6 {[%clk 0:02:56]} 2. d4 {[%clk 0:03:00]}  d5 {[%clk 0:02:57]} 3. exd5 {[%clk 0:03:00]}  cxd5 {[%clk 0:02:57]} 4. Bd3 {[%clk 0:03:01]}  Nf6 {[%clk 0:02:56]} 5. c3 {[%clk 0:03:02]}  Nc6 {[%clk 0:02:57]} 6. Bf4 {[%clk 0:03:01]}  g6 {[%clk 0:02:53]} 7. Nf3 {[%clk 0:03:00]}  Bg7 {[%clk 0:02:52]} 8. O-O {[%clk 0:03:01]}  O-O {[%clk 0:02:51]} 9. Re1 {[%clk 0:02:56]}  Bf5 {[%clk 0:02:51]} 10. Ne5 {[%clk 0:02:56]}  Bxd3 {[%clk 0:02:50]} 11. Nxd3 {[%clk 0:02:56]}  e6 {[%clk 0:02:50]} 12. Nd2 {[%clk 0:02:55]}  b5 {[%clk 0:02:49]} 13. b4 {[%clk 0:02:49]}  a5 {[%clk 0:02:46]} 14. a3 {[%clk 0:02:49]}  Nd7 {[%clk 0:02:43]} 15. Bd6 {[%clk 0:02:34]}  Re8 {[%clk 0:02:42]} 16. Bc5 {[%clk 0:02:34]}  e5 {[%clk 0:02:36]} 17. dxe5 {[%clk 0:02:10]}  Nxc5 {[%clk 0:02:24]} 18. Nxc5 {[%clk 0:02:08]}  Bxe5 {[%clk 0:02:22]} 19. Qc2 {[%clk 0:01:52]}  axb4 {[%clk 0:02:21]} 20. axb4 {[%clk 0:01:52]}  Rxa1 {[%clk 0:02:21]} 21. Rxa1 {[%clk 0:01:53]}  Nxb4 {[%clk 0:02:21]} 22. Nf3 {[%clk 0:01:50]}  Nxc2 {[%clk 0:02:20]} 0-1


[Site "https://www.chess.com"]

[Event "Titled Tuesday Blitz November 14 Late 2023"]
[White "Bernat, David"]
[Black "Yelisieiev, Yevhenii"]
[WhiteFideId "2099225"]
[BlackFideId "14139642"]
[WhiteElo "2368"]
[BlackElo "2591"]
[Result "0-1"]
[Round "2"]
[TimeControl "180+1"]
[Date "2023.11.14"]
[WhiteClock "0:00:00"]
[BlackClock "0:01:10"]
[Board "113"]

1. c4 {[%clk 0:03:00]}  d6 {[%clk 0:03:00]} 2. Nc3 {[%clk 0:03:00]}  e5 {[%clk 0:03:01]} 3. g3 {[%clk 0:03:00]}  Nf6 {[%clk 0:03:01]} 4. Bg2 {[%clk 0:03:01]}  Be7 {[%clk 0:03:01]} 5. d3 {[%clk 0:03:02]}  O-O {[%clk 0:03:02]} 6. e4 {[%clk 0:03:02]}  c6 {[%clk 0:03:02]} 7. Nge2 {[%clk 0:03:03]}  Nbd7 {[%clk 0:03:02]} 8. O-O {[%clk 0:03:04]}  a5 {[%clk 0:03:02]} 9. h3 {[%clk 0:03:04]}  Nc5 {[%clk 0:03:02]} 10. Be3 {[%clk 0:03:04]}  Ne6 {[%clk 0:02:49]} 11. f4 {[%clk 0:03:03]}  c5 {[%clk 0:02:48]} 12. f5 {[%clk 0:03:02]}  Nd4 {[%clk 0:02:48]} 13. g4 {[%clk 0:03:03]}  Ne8 {[%clk 0:02:46]} 14. Qd2 {[%clk 0:02:55]}  h6 {[%clk 0:02:43]} 15. Nd5 {[%clk 0:02:42]}  Bg5 {[%clk 0:02:41]} 16. Nxd4 {[%clk 0:02:01]}  cxd4 {[%clk 0:02:36]} 17. Bxg5 {[%clk 0:02:01]}  Qxg5 {[%clk 0:02:29]} 18. Qxg5 {[%clk 0:02:01]}  hxg5 {[%clk 0:02:30]} 19. Nb6 {[%clk 0:02:02]}  Rb8 {[%clk 0:02:28]} 20. a3 {[%clk 0:01:57]}  Nc7 {[%clk 0:02:26]} 21. b4 {[%clk 0:01:56]}  axb4 {[%clk 0:02:21]} 22. axb4 {[%clk 0:01:56]}  Na6 {[%clk 0:02:21]} 23. Rfb1 {[%clk 0:01:36]}  Rd8 {[%clk 0:02:18]} 24. Bf3 {[%clk 0:01:31]}  Bd7 {[%clk 0:02:14]} 25. Bd1 {[%clk 0:01:30]}  Kf8 {[%clk 0:02:04]} 26. Ba4 {[%clk 0:01:27]}  Bxa4 {[%clk 0:02:03]} 27. Rxa4 {[%clk 0:01:28]}  Ke7 {[%clk 0:02:04]} 28. Rba1 {[%clk 0:01:16]}  f6 {[%clk 0:02:02]} 29. Nd5+ {[%clk 0:00:37]}  Kf7 {[%clk 0:02:02]} 30. Rxa6 {[%clk 0:00:34]}  bxa6 {[%clk 0:02:00]} 31. Rxa6 {[%clk 0:00:35]}  Ra8 {[%clk 0:01:49]} 32. Rb6 {[%clk 0:00:30]}  Ra3 {[%clk 0:01:34]} 33. Rb7+ {[%clk 0:00:28]}  Kg8 {[%clk 0:01:33]} 34. Ne7+ {[%clk 0:00:27]}  Kh7 {[%clk 0:01:32]} 35. Nd5 {[%clk 0:00:20]}  Kh6 {[%clk 0:01:29]} 36. b5 {[%clk 0:00:15]}  Rxd3 {[%clk 0:01:27]} 37. b6 {[%clk 0:00:15]}  Rb3 {[%clk 0:01:23]} 38. Ra7 {[%clk 0:00:09]}  d3 {[%clk 0:01:19]} 39. Ra2 {[%clk 0:00:08]}  Rc8 {[%clk 0:01:17]} 40. Rd2 {[%clk 0:00:03]}  Rxc4 {[%clk 0:01:16]} 41. Kf2 {[%clk 0:00:02]}  Rxe4 {[%clk 0:01:14]} 42. Kf3 {[%clk 0:00:01]}  Rd4 {[%clk 0:01:11]} 43. Ne3 {[%clk 0:00:00]}  Rxb6 {[%clk 0:01:10]} 0-1


[Site "https://www.chess.com"]

[Event "Titled Tuesday Blitz November 14 Late 2023"]
[White "Fernandez Diaz, Cristian"]
[Black "Banzea, Alexandru-Bogdan"]
[WhiteFideId "22256687"]
[BlackFideId "1232622"]
[WhiteElo "2368"]
[BlackElo "2585"]
[Result "0-1"]
[Round "2"]
[TimeControl "180+1"]
[Date "2023.11.14"]
[WhiteClock "0:00:16"]
[BlackClock "0:00:14"]
[Board "114"]

1. d4 {[%clk 0:03:00]}  Nf6 {[%clk 0:01:36]} 2. c4 {[%clk 0:03:00]}  g6 {[%clk 0:01:34]} 3. Nc3 {[%clk 0:02:59]}  Bg7 {[%clk 0:01:33]} 4. e4 {[%clk 0:02:59]}  d6 {[%clk 0:00:57]} 5. Nf3 {[%clk 0:02:59]}  O-O {[%clk 0:00:57]} 6. Be2 {[%clk 0:02:59]}  e5 {[%clk 0:00:57]} 7. O-O {[%clk 0:02:58]}  Bg4 {[%clk 0:00:58]} 8. d5 {[%clk 0:02:52]}  a5 {[%clk 0:00:58]} 9. Ne1 {[%clk 0:02:50]}  Bd7 {[%clk 0:00:55]} 10. Nd3 {[%clk 0:02:48]}  Na6 {[%clk 0:00:56]} 11. Be3 {[%clk 0:02:46]}  b6 {[%clk 0:00:56]} 12. a3 {[%clk 0:02:42]}  Nc5 {[%clk 0:00:56]} 13. f3 {[%clk 0:02:34]}  Nh5 {[%clk 0:00:57]} 14. b4 {[%clk 0:02:28]}  axb4 {[%clk 0:00:57]} 15. axb4 {[%clk 0:02:28]}  Rxa1 {[%clk 0:00:57]} 16. Qxa1 {[%clk 0:02:28]}  Nb3 {[%clk 0:00:58]} 17. Qb2 {[%clk 0:02:23]}  Nd4 {[%clk 0:00:58]} 18. c5 {[%clk 0:02:16]}  f5 {[%clk 0:00:54]} 19. Ra1 {[%clk 0:02:12]}  fxe4 {[%clk 0:00:41]} 20. Nxe4 {[%clk 0:02:12]}  Nf4 {[%clk 0:00:30]} 21. Nxf4 {[%clk 0:02:06]}  Rxf4 {[%clk 0:00:29]} 22. Bxf4 {[%clk 0:01:58]}  exf4 {[%clk 0:00:29]} 23. Qa2 {[%clk 0:00:38]}  Nxe2+ {[%clk 0:00:29]} 24. Kf1 {[%clk 0:00:37]}  Bxa1 {[%clk 0:00:29]} 25. Qxa1 {[%clk 0:00:37]}  Bb5 {[%clk 0:00:27]} 26. Nf6+ {[%clk 0:00:34]}  Kf7 {[%clk 0:00:27]} 27. Ng4 {[%clk 0:00:32]}  Nd4+ {[%clk 0:00:14]} 28. Kf2 {[%clk 0:00:28]}  Qe8 {[%clk 0:00:15]} 29. Nh6+ {[%clk 0:00:19]}  Kf8 {[%clk 0:00:15]} 30. h4 {[%clk 0:00:16]}  Qe3# {[%clk 0:00:14]} 0-1


[Site "https://www.chess.com"]

[Event "Titled Tuesday Blitz November 14 Late 2023"]
[White "Tikhonov, Viacheslav"]
[Black "Fernandez Bustamante, Leancy B."]
[WhiteFideId "44196407"]
[BlackFideId "3523870"]
[WhiteElo "2577"]
[BlackElo "2352"]
[Result "0-1"]
[Round "2"]
[TimeControl "180+1"]
[Date "2023.11.14"]
[WhiteClock "0:00:00"]
[BlackClock "0:01:51"]
[Board "116"]

1. e4 {[%clk 0:03:00]}  c5 {[%clk 0:03:00]} 2. Nf3 {[%clk 0:03:01]}  a6 {[%clk 0:02:59]} 3. d4 {[%clk 0:03:00]}  cxd4 {[%clk 0:02:59]} 4. c3 {[%clk 0:03:00]}  dxc3 {[%clk 0:02:58]} 5. Nxc3 {[%clk 0:03:01]}  e6 {[%clk 0:02:58]} 6. Bc4 {[%clk 0:03:00]}  d6 {[%clk 0:02:58]} 7. O-O {[%clk 0:02:59]}  Ne7 {[%clk 0:02:58]} 8. Qe2 {[%clk 0:02:48]}  Nbc6 {[%clk 0:02:54]} 9. Rd1 {[%clk 0:02:48]}  Ng6 {[%clk 0:02:51]} 10. b4 {[%clk 0:01:54]}  Nce5 {[%clk 0:02:52]} 11. Nxe5 {[%clk 0:01:41]}  Nxe5 {[%clk 0:02:51]} 12. Bb3 {[%clk 0:01:42]}  Bd7 {[%clk 0:02:45]} 13. f4 {[%clk 0:01:35]}  Ng6 {[%clk 0:02:42]} 14. f5 {[%clk 0:01:32]}  exf5 {[%clk 0:02:39]} 15. exf5+ {[%clk 0:01:29]}  Ne5 {[%clk 0:02:39]} 16. Nd5 {[%clk 0:01:24]}  Bxf5 {[%clk 0:02:24]} 17. Be3 {[%clk 0:01:20]}  Bg4 {[%clk 0:02:08]} 18. Qf1 {[%clk 0:00:36]}  Bxd1 {[%clk 0:02:04]} 19. Rxd1 {[%clk 0:00:00]}  Rc8 {[%clk 0:01:51]} 0-1


[Site "https://www.chess.com"]

[Event "Titled Tuesday Blitz November 14 Late 2023"]
[White "Lalanne, Pablo"]
[Black "Toncheva, Nadya"]
[WhiteFideId "112151"]
[BlackFideId "2924056"]
[WhiteElo "2351"]
[BlackElo "2574"]
[Result "1-0"]
[Round "2"]
[TimeControl "180+1"]
[Date "2023.11.14"]
[WhiteClock "0:00:08"]
[BlackClock "0:00:00"]
[Board "117"]

1. e4 {[%clk 0:03:00]}  c5 {[%clk 0:02:55]} 2. Nf3 {[%clk 0:03:00]}  Nc6 {[%clk 0:02:55]} 3. d4 {[%clk 0:02:59]}  cxd4 {[%clk 0:02:55]} 4. Nxd4 {[%clk 0:03:00]}  Nf6 {[%clk 0:02:54]} 5. Nc3 {[%clk 0:03:00]}  g6 {[%clk 0:02:52]} 6. Nxc6 {[%clk 0:02:58]}  bxc6 {[%clk 0:02:52]} 7. e5 {[%clk 0:02:58]}  Ng8 {[%clk 0:02:53]} 8. Bc4 {[%clk 0:02:52]}  Bg7 {[%clk 0:02:49]} 9. Qf3 {[%clk 0:02:45]}  e6 {[%clk 0:02:47]} 10. Bf4 {[%clk 0:02:42]}  Ne7 {[%clk 0:02:39]} 11. O-O {[%clk 0:02:29]}  O-O {[%clk 0:02:37]} 12. Ne4 {[%clk 0:02:26]}  Nd5 {[%clk 0:02:35]} 13. Bg5 {[%clk 0:02:20]}  f6 {[%clk 0:02:35]} 14. exf6 {[%clk 0:02:16]}  Nxf6 {[%clk 0:02:26]} 15. Nd6 {[%clk 0:02:04]}  Qc7 {[%clk 0:02:18]} 16. Rad1 {[%clk 0:01:52]}  Ne8 {[%clk 0:01:44]} 17. Nxe8 {[%clk 0:01:46]}  Rxe8 {[%clk 0:01:45]} 18. Bf4 {[%clk 0:01:35]}  Be5 {[%clk 0:01:37]} 19. Bxe5 {[%clk 0:01:32]}  Qxe5 {[%clk 0:01:38]} 20. Rfe1 {[%clk 0:01:24]}  Qxb2 {[%clk 0:01:12]} 21. c3 {[%clk 0:01:23]}  d5 {[%clk 0:01:10]} 22. Bb3 {[%clk 0:01:17]}  Qa3 {[%clk 0:01:05]} 23. c4 {[%clk 0:01:16]}  Qf8 {[%clk 0:00:55]} 24. Qg3 {[%clk 0:01:01]}  Bd7 {[%clk 0:00:48]} 25. h4 {[%clk 0:00:56]}  Qf6 {[%clk 0:00:43]} 26. h5 {[%clk 0:00:55]}  d4 {[%clk 0:00:36]} 27. Re5 {[%clk 0:00:48]}  c5 {[%clk 0:00:26]} 28. Rxc5 {[%clk 0:00:41]}  e5 {[%clk 0:00:26]} 29. Rc7 {[%clk 0:00:34]}  Be6 {[%clk 0:00:23]} 30. Rc6 {[%clk 0:00:33]}  Qg7 {[%clk 0:00:20]} 31. h6 {[%clk 0:00:22]}  Qd7 {[%clk 0:00:17]} 32. Rxe6 {[%clk 0:00:20]}  Rxe6 {[%clk 0:00:16]} 33. c5 {[%clk 0:00:19]}  Kf8 {[%clk 0:00:17]} 34. Qf3+ {[%clk 0:00:19]}  Ke7 {[%clk 0:00:16]} 35. Qxa8 {[%clk 0:00:18]}  Rc6 {[%clk 0:00:16]} 36. Qg8 {[%clk 0:00:17]}  Rxc5 {[%clk 0:00:14]} 37. Qxh7+ {[%clk 0:00:16]}  Kd6 {[%clk 0:00:15]} 38. Qxg6+ {[%clk 0:00:16]}  Kc7 {[%clk 0:00:13]} 39. h7 {[%clk 0:00:16]}  e4 {[%clk 0:00:08]} 40. h8=Q {[%clk 0:00:14]}  e3 {[%clk 0:00:04]} 41. Qg3+ {[%clk 0:00:12]}  Kb6 {[%clk 0:00:03]} 42. Qf6+ {[%clk 0:00:11]}  Rc6 {[%clk 0:00:03]} 43. Qxd4+ {[%clk 0:00:11]}  Qxd4 {[%clk 0:00:03]} 44. Rxd4 {[%clk 0:00:11]}  e2 {[%clk 0:00:04]} 45. Rb4+ {[%clk 0:00:09]}  Ka5 {[%clk 0:00:04]} 46. Ra4+ {[%clk 0:00:09]}  Kb5 {[%clk 0:00:04]} 47. Qd3+ {[%clk 0:00:09]}  Kb6 {[%clk 0:00:04]} 48. Rb4+ {[%clk 0:00:09]}  Kc7 {[%clk 0:00:03]} 49. Qxe2 {[%clk 0:00:08]}  Rc1+ {[%clk 0:00:04]} 50. Kh2 {[%clk 0:00:08]}  Rc6 {[%clk 0:00:05]} 51. Qe7+ {[%clk 0:00:08]}  Kc8 {[%clk 0:00:04]} 52. Rb7 {[%clk 0:00:08]}  Rh6+ {[%clk 0:00:00]} 53. Kg1 {[%clk 0:00:08]} 1-0


[Site "https://www.chess.com"]

[Event "Titled Tuesday Blitz November 14 Late 2023"]
[White "Potapova, Margarita"]
[Black "KorolDimitriy75"]
[WhiteFideId "14126869"]
[WhiteElo "2565"]
[BlackElo "2348"]
[Result "1-0"]
[Round "2"]
[TimeControl "180+1"]
[Date "2023.11.14"]
[WhiteClock "0:01:00"]
[BlackClock "0:00:00"]
[Board "120"]

1. e4 {[%clk 0:03:00]}  c5 {[%clk 0:03:00]} 2. Nf3 {[%clk 0:02:56]}  d6 {[%clk 0:03:00]} 3. d4 {[%clk 0:02:55]}  cxd4 {[%clk 0:03:01]} 4. Nxd4 {[%clk 0:02:55]}  Nf6 {[%clk 0:03:01]} 5. Nc3 {[%clk 0:02:55]}  g6 {[%clk 0:03:02]} 6. f4 {[%clk 0:02:54]}  Nbd7 {[%clk 0:03:01]} 7. Bb5 {[%clk 0:02:51]}  a6 {[%clk 0:02:59]} 8. Bd3 {[%clk 0:02:47]}  Bg7 {[%clk 0:02:56]} 9. Qe2 {[%clk 0:02:47]}  O-O {[%clk 0:02:51]} 10. Bd2 {[%clk 0:02:36]}  Qc7 {[%clk 0:02:45]} 11. O-O-O {[%clk 0:02:33]}  b5 {[%clk 0:02:43]} 12. Nf3 {[%clk 0:02:17]}  Nb6 {[%clk 0:02:18]} 13. e5 {[%clk 0:02:13]}  Nfd5 {[%clk 0:01:34]} 14. Nxd5 {[%clk 0:02:10]}  Nxd5 {[%clk 0:01:33]} 15. h4 {[%clk 0:02:08]}  Bb7 {[%clk 0:01:07]} 16. h5 {[%clk 0:02:02]}  e6 {[%clk 0:00:53]} 17. hxg6 {[%clk 0:01:53]}  hxg6 {[%clk 0:00:54]} 18. Ng5 {[%clk 0:01:53]}  dxe5 {[%clk 0:00:50]} 19. Nxe6 {[%clk 0:01:36]}  fxe6 {[%clk 0:00:48]} 20. Bxg6 {[%clk 0:01:37]}  Rfd8 {[%clk 0:00:19]} 21. Bh7+ {[%clk 0:01:25]}  Kf8 {[%clk 0:00:18]} 22. Rdf1 {[%clk 0:01:16]}  exf4 {[%clk 0:00:17]} 23. Qxe6 {[%clk 0:01:14]}  Qe5 {[%clk 0:00:16]} 24. Rxf4+ {[%clk 0:01:00]}  Nxf4 {[%clk 0:00:00]} 25. Bb4+ {[%clk 0:01:00]} 1-0


[Site "https://www.chess.com"]

[Event "Titled Tuesday Blitz November 14 Late 2023"]
[White "RodokininEV"]
[Black "Becerra, Juan David"]
[BlackFideId "4404998"]
[WhiteElo "2525"]
[BlackElo "2344"]
[Result "1-0"]
[Round "2"]
[TimeControl "180+1"]
[Date "2023.11.14"]
[WhiteClock "0:00:24"]
[BlackClock "0:00:00"]
[Board "123"]

1. d4 {[%clk 0:03:00]}  Nf6 {[%clk 0:02:56]} 2. c4 {[%clk 0:03:00]}  e6 {[%clk 0:02:56]} 3. Nf3 {[%clk 0:03:00]}  c5 {[%clk 0:02:57]} 4. d5 {[%clk 0:03:00]}  exd5 {[%clk 0:02:57]} 5. cxd5 {[%clk 0:03:01]}  d6 {[%clk 0:02:57]} 6. Nc3 {[%clk 0:03:01]}  g6 {[%clk 0:02:58]} 7. Bf4 {[%clk 0:03:01]}  Bg7 {[%clk 0:02:56]} 8. e3 {[%clk 0:03:01]}  Bg4 {[%clk 0:02:55]} 9. Be2 {[%clk 0:03:01]}  O-O {[%clk 0:02:51]} 10. h3 {[%clk 0:02:56]}  Bxf3 {[%clk 0:02:50]} 11. Bxf3 {[%clk 0:02:57]}  a6 {[%clk 0:02:49]} 12. a4 {[%clk 0:02:56]}  Re8 {[%clk 0:02:49]} 13. O-O {[%clk 0:02:55]}  Nbd7 {[%clk 0:02:48]} 14. Bh2 {[%clk 0:02:48]}  Ne5 {[%clk 0:02:48]} 15. Be2 {[%clk 0:02:48]}  Qc7 {[%clk 0:02:17]} 16. e4 {[%clk 0:02:12]}  b6 {[%clk 0:02:14]} 17. f4 {[%clk 0:02:06]}  Ned7 {[%clk 0:02:05]} 18. Bf3 {[%clk 0:02:06]}  c4 {[%clk 0:01:56]} 19. Re1 {[%clk 0:01:47]}  Qc5+ {[%clk 0:01:53]} 20. Kh1 {[%clk 0:01:45]}  Nf8 {[%clk 0:00:44]} 21. e5 {[%clk 0:01:32]}  dxe5 {[%clk 0:00:44]} 22. fxe5 {[%clk 0:01:32]}  N6d7 {[%clk 0:00:43]} 23. Ne4 {[%clk 0:01:11]}  Qb4 {[%clk 0:00:35]} 24. Nd6 {[%clk 0:01:00]}  Nxe5 {[%clk 0:00:19]} 25. Nxe8 {[%clk 0:00:52]}  Rxe8 {[%clk 0:00:14]} 26. d6 {[%clk 0:00:39]}  Nfd7 {[%clk 0:00:13]} 27. Bc6 {[%clk 0:00:30]}  Rc8 {[%clk 0:00:11]} 28. Bxd7 {[%clk 0:00:29]}  Nxd7 {[%clk 0:00:00]} 29. Re7 {[%clk 0:00:24]} 1-0


[Site "https://www.chess.com"]

[Event "Titled Tuesday Blitz November 14 Late 2023"]
[White "Statham_l3"]
[Black "Harish, Neeraj"]
[BlackFideId "30958130"]
[WhiteElo "2513"]
[BlackElo "2338"]
[Result "1-0"]
[Round "2"]
[TimeControl "180+1"]
[Date "2023.11.14"]
[WhiteClock "0:00:03"]
[BlackClock "0:00:02"]
[Board "126"]

1. e4 {[%clk 0:03:00]}  c5 {[%clk 0:02:57]} 2. Nf3 {[%clk 0:03:00]}  Nc6 {[%clk 0:02:56]} 3. b4 {[%clk 0:02:58]}  cxb4 {[%clk 0:02:50]} 4. d4 {[%clk 0:02:56]}  g6 {[%clk 0:02:51]} 5. d5 {[%clk 0:02:51]}  Bg7 {[%clk 0:02:48]} 6. c3 {[%clk 0:02:50]}  bxc3 {[%clk 0:02:33]} 7. dxc6 {[%clk 0:02:45]}  dxc6 {[%clk 0:02:09]} 8. Qxd8+ {[%clk 0:02:29]}  Kxd8 {[%clk 0:02:10]} 9. e5 {[%clk 0:02:28]}  c2 {[%clk 0:01:43]} 10. Na3 {[%clk 0:02:26]}  Bg4 {[%clk 0:01:42]} 11. Bb2 {[%clk 0:02:22]}  Kc7 {[%clk 0:01:25]} 12. Rc1 {[%clk 0:02:18]}  Rd8 {[%clk 0:01:24]} 13. Rxc2 {[%clk 0:02:12]}  Rd5 {[%clk 0:01:24]} 14. Bc4 {[%clk 0:02:06]}  Rc5 {[%clk 0:01:23]} 15. Bd4 {[%clk 0:02:02]}  Ra5 {[%clk 0:01:18]} 16. Rc3 {[%clk 0:01:44]}  Bxf3 {[%clk 0:01:07]} 17. Rxf3 {[%clk 0:01:23]}  Bxe5 {[%clk 0:01:06]} 18. Nb5+ {[%clk 0:00:43]}  Rxb5 {[%clk 0:00:49]} 19. Bxb5 {[%clk 0:00:43]}  Bxd4 {[%clk 0:00:49]} 20. Bc4 {[%clk 0:00:43]}  f5 {[%clk 0:00:41]} 21. Ke2 {[%clk 0:00:36]}  Nf6 {[%clk 0:00:36]} 22. Rd1 {[%clk 0:00:30]}  Rd8 {[%clk 0:00:31]} 23. h4 {[%clk 0:00:28]}  e5 {[%clk 0:00:28]} 24. a4 {[%clk 0:00:25]}  Ne4 {[%clk 0:00:11]} 25. Rc1 {[%clk 0:00:10]}  Nd6 {[%clk 0:00:10]} 26. Ba2 {[%clk 0:00:05]}  Kb6 {[%clk 0:00:07]} 27. Rb3+ {[%clk 0:00:02]}  Kc7 {[%clk 0:00:05]} 28. Rcb1 {[%clk 0:00:03]}  b6 {[%clk 0:00:04]} 29. f3 {[%clk 0:00:03]}  c5 {[%clk 0:00:04]} 30. a5 {[%clk 0:00:03]}  Nc8 {[%clk 0:00:02]} 31. axb6+ {[%clk 0:00:04]}  axb6 {[%clk 0:00:03]} 32. g4 {[%clk 0:00:05]}  Rd7 {[%clk 0:00:03]} 33. h5 {[%clk 0:00:04]}  Rd6 {[%clk 0:00:02]} 34. gxf5 {[%clk 0:00:03]}  gxf5 {[%clk 0:00:02]} 35. Ra3 {[%clk 0:00:03]}  Re6 {[%clk 0:00:03]} 36. Bxe6 {[%clk 0:00:03]}  Kc6 {[%clk 0:00:02]} 37. Bxc8 {[%clk 0:00:03]} 1-0


[Site "https://www.chess.com"]

[Event "Titled Tuesday Blitz November 14 Late 2023"]
[White "Chabris, Christopher"]
[Black "JackRodgers"]
[WhiteFideId "2005263"]
[WhiteElo "2336"]
[BlackElo "2511"]
[Result "0-1"]
[Round "2"]
[TimeControl "180+1"]
[Date "2023.11.14"]
[WhiteClock "0:00:00"]
[BlackClock "0:00:43"]
[Board "127"]

1. e4 {[%clk 0:02:59]}  c5 {[%clk 0:02:59]} 2. Nf3 {[%clk 0:02:55]}  g6 {[%clk 0:02:58]} 3. c3 {[%clk 0:02:55]}  Bg7 {[%clk 0:02:58]} 4. d4 {[%clk 0:02:54]}  cxd4 {[%clk 0:02:59]} 5. cxd4 {[%clk 0:02:55]}  d5 {[%clk 0:02:58]} 6. e5 {[%clk 0:02:55]}  Bg4 {[%clk 0:02:58]} 7. Bb5+ {[%clk 0:02:55]}  Nd7 {[%clk 0:02:58]} 8. O-O {[%clk 0:02:53]}  e6 {[%clk 0:02:54]} 9. Nbd2 {[%clk 0:02:50]}  a6 {[%clk 0:02:55]} 10. Bxd7+ {[%clk 0:02:40]}  Qxd7 {[%clk 0:02:55]} 11. h3 {[%clk 0:02:41]}  Bxf3 {[%clk 0:02:55]} 12. Qxf3 {[%clk 0:02:37]}  Ne7 {[%clk 0:02:55]} 13. Nb3 {[%clk 0:02:36]}  Nc6 {[%clk 0:02:53]} 14. Bg5 {[%clk 0:02:35]}  O-O {[%clk 0:02:52]} 15. Rad1 {[%clk 0:02:25]}  b6 {[%clk 0:02:50]} 16. Rfe1 {[%clk 0:02:19]}  a5 {[%clk 0:02:50]} 17. Bf6 {[%clk 0:02:09]}  a4 {[%clk 0:02:49]} 18. Nc1 {[%clk 0:02:08]}  Rac8 {[%clk 0:02:46]} 19. Ne2 {[%clk 0:02:07]}  Na5 {[%clk 0:02:30]} 20. Nf4 {[%clk 0:02:06]}  Rc2 {[%clk 0:02:09]} 21. Nh5 {[%clk 0:01:46]}  Bh6 {[%clk 0:01:59]} 22. Qg3 {[%clk 0:01:42]}  Rfc8 {[%clk 0:01:45]} 23. Bg5 {[%clk 0:01:38]}  Bg7 {[%clk 0:01:40]} 24. Nf6+ {[%clk 0:01:32]}  Bxf6 {[%clk 0:01:40]} 25. Bxf6 {[%clk 0:01:33]}  Rxb2 {[%clk 0:01:26]} 26. Qg5 {[%clk 0:01:27]}  Qe8 {[%clk 0:01:26]} 27. Rc1 {[%clk 0:01:20]}  Rbc2 {[%clk 0:01:26]} 28. Rxc2 {[%clk 0:00:57]}  Rxc2 {[%clk 0:01:27]} 29. Re3 {[%clk 0:00:45]}  Qf8 {[%clk 0:01:18]} 30. Rg3 {[%clk 0:00:40]}  Nc4 {[%clk 0:01:09]} 31. Be7 {[%clk 0:00:21]}  h6 {[%clk 0:01:02]} 32. Qf6 {[%clk 0:00:18]}  Qg7 {[%clk 0:01:01]} 33. Qh4 {[%clk 0:00:17]}  Nd2 {[%clk 0:00:59]} 34. Bf6 {[%clk 0:00:14]}  Rc1+ {[%clk 0:00:58]} 35. Kh2 {[%clk 0:00:14]}  Nf1+ {[%clk 0:00:58]} 36. Kg1 {[%clk 0:00:13]}  Nxg3+ {[%clk 0:00:57]} 37. Kh2 {[%clk 0:00:13]}  Nf1+ {[%clk 0:00:54]} 38. Kg1 {[%clk 0:00:13]}  g5 {[%clk 0:00:43]} 39. Qh5 {[%clk 0:00:10]}  Ng3+ {[%clk 0:00:42]} 40. Kh2 {[%clk 0:00:00]}  Nxh5 {[%clk 0:00:43]} 0-1


[Site "https://www.chess.com"]